bitfinex/quotes_SOLUSD_20250531
["timestamp","ask_amount","ask_price","bid_price","bid_amount"]
[1748727394008,15.44361227,157.93,157.88,6.33392449]
[1748727394209,48.76,157.92,157.88,21.77753676]
[1748727394493,9.96,157.92,157.88,21.77753676]
[1748727395020,48.74,157.93,157.88,21.77753676]
[1748727396608,9.96,157.93,157.88,21.77753676]
[1748727396812,25.40361227,157.94,157.89,15.44361227]
[1748727397016,64.18361227,157.94,157.89,15.44361227]
[1748727397691,6.3201,157.93,157.89,15.44361227]
[1748727398710,6.3201,157.93,157.9,6.33312222]
[1748727401699,6.3201,157.93,157.89,40.56894603]
[1748727408229,6.3201,157.93,157.9,15.44361227]
[1748727409532,6.3201,157.93,157.91,6.33272117]
[1748727424555,11.5224,157.94,157.91,6.33272117]
[1748727424724,1.5624,157.94,157.91,6.33272117]
[1748727424923,1.5624,157.94,157.87,89.74216157]
[1748727424924,15.44361227,157.92,157.85,22.1723923]
[1748727425231,54.06361227,157.92,157.87,18.64964886]
[1748727425631,54.06361227,157.92,157.87,60.09326113]
[1748727426447,38.62,157.92,157.87,60.09326113]
[1748727426645,54.06361227,157.92,157.88,6.33392449]
[1748727429446,15.44361227,157.91,157.88,6.33392449]
[1748727430230,44.95239476,157.92,157.87,32.33423803]
[1748727430434,15.44361227,157.89,157.87,26.0]
[1748727431450,54.06361227,157.89,157.87,26.0]
[1748727431857,60.26691227,157.89,157.87,26.0]
[1748727434751,60.26691227,157.89,157.86,26.0]
[1748727435058,15.44361227,157.87,157.84,6.3353811]
[1748727435957,15.44361227,157.86,157.83,32.33585827]
[1748727436265,15.44361227,157.86,157.83,6.33585827]
[1748727436436,54.12361227,157.86,157.83,6.33585827]
[1748727436739,54.12361227,157.86,157.82,6.33633253]
[1748727437145,64.08361227,157.86,157.82,6.33633253]
[1748727442572,64.08361227,157.86,157.82,21.7799448]
[1748727443867,48.64,157.86,157.82,21.7799448]
[1748727446272,64.08361227,157.86,157.82,6.33633253]
[1748727448054,48.64,157.86,157.82,21.7799448]
[1748727448253,64.08361227,157.86,157.82,21.7799448]
[1748727449755,64.08361227,157.86,157.84,15.44361227]
[1748727449756,9.96,157.86,157.84,15.44361227]
[1748727451150,64.04361227,157.9,157.85,15.44361227]
[1748727451955,6.2523,157.91,157.87,15.44361227]
[1748727452366,64.06361227,157.92,157.87,15.44361227]
[1748727452558,25.40361227,157.92,157.87,15.44361227]
[1748727452758,64.06361227,157.92,157.87,15.44361227]
[1748727453959,64.04361227,157.92,157.88,6.33392449]
[1748727454165,9.96,157.92,157.88,21.77753676]
[1748727454777,25.40361227,157.92,157.88,6.33392449]
[1748727456990,9.96,157.92,157.88,6.33392449]
[1748727457165,9.96,157.92,157.88,21.77753676]
[1748727457870,25.40361227,157.92,157.88,6.33392449]
[1748727460287,15.44361227,157.91,157.88,6.33392449]
[1748727460793,17.03351227,157.91,157.88,6.33392449]
[1748727461482,15.44361227,157.91,157.88,6.33392449]
[1748727462499,15.44361227,157.9,157.88,6.33392449]
[1748727463069,54.06361227,157.9,157.88,6.33392449]
[1748727463473,38.62,157.9,157.88,6.33392449]
[1748727464075,54.06361227,157.9,157.87,32.3342148]
[1748727464472,38.62,157.9,157.87,32.3342148]
[1748727465286,54.06361227,157.9,157.87,32.3342148]
[1748727466989,15.44361227,157.88,157.85,32.33512828]
[1748727467175,15.44361227,157.88,157.85,6.33512828]
[1748727467984,15.44361227,157.87,157.85,6.33512828]
[1748727468296,64.02361227,157.87,157.85,6.33512828]
[1748727468974,64.02361227,157.87,157.84,6.33552965]
[1748727469887,15.44361227,157.85,157.74,47.54659566]
[1748727470073,54.9145673,157.87,157.77,15.44361227]
[1748727470074,15.44361227,157.82,157.77,15.44361227]
[1748727470274,15.44361227,157.83,157.78,26.0]
[1748727470784,15.44361227,157.83,157.78,15.44361227]
[1748727471211,54.06361227,157.84,157.79,6.33753723]
[1748727471502,6.33531417,157.85,157.82,15.44361227]
[1748727471503,38.62,157.85,157.82,15.44361227]
[1748727471708,38.62,157.86,157.82,15.44361227]
[1748727472414,54.06361227,157.86,157.81,21.92250788]
[1748727474111,54.06361227,157.86,157.81,6.47889561]
[1748727475115,15.44361227,157.85,157.81,6.47889561]
[1748727478519,16.29446865,157.87,157.81,21.92250788]
[1748727478682,54.06361227,157.86,157.81,21.92250788]
[1748727479080,15.44361227,157.85,157.81,6.47889561]
[1748727481105,44.9548629,157.86,157.81,6.47889561]
[1748727481304,15.44361227,157.85,157.81,6.33673404]
[1748727483023,15.44361227,157.84,157.81,6.33673404]
[1748727484809,15.44361227,157.84,157.8,6.33713492]
[1748727488024,15.44361227,157.85,157.8,6.33713492]
[1748727489864,15.44361227,157.83,157.79,24.98718609]
[1748727490152,9.96,157.87,157.83,18.79181043]
[1748727490334,9.96,157.87,157.83,34.2354227]
[1748727490838,9.96,157.87,157.83,18.79181043]
[1748727491041,9.96,157.87,157.82,41.44361227]
[1748727491338,25.40361227,157.87,157.82,26.0]
[1748727491755,15.44361227,157.86,157.83,6.33593106]
[1748727493419,15.44361227,157.85,157.82,6.33619957]
[1748727495024,48.58,157.87,157.82,6.33619957]
[1748727495025,15.44361227,157.86,157.82,6.33619957]
[1748727495927,15.44361227,157.86,157.81,6.33673404]
[1748727499327,15.44361227,157.85,157.81,6.33673404]
[1748727500838,15.44361227,157.86,157.81,6.33673404]
[1748727507183,15.44361227,157.85,157.81,6.33673404]
[1748727508960,15.44361227,157.86,157.81,6.33673404]
[1748727510270,9.96,157.85,157.81,6.33673404]
[1748727510980,25.40361227,157.85,157.81,6.33673404]
[1748727516379,9.96,157.85,157.81,6.33673404]
[1748727518575,25.40361227,157.85,157.81,6.33673404]
[1748727519674,9.96,157.85,157.81,6.33673404]
[1748727525978,15.44361227,157.84,157.81,6.33673404]
[1748727529997,15.44361227,157.82,157.78,6.33761931]
[1748727530195,15.44361227,157.8,157.76,6.33874239]
[1748727530509,15.44361227,157.79,157.75,6.33906852]
[1748727531188,15.44361227,157.78,157.74,32.33925772]
[1748727531900,15.44361227,157.78,157.74,26.0]
[1748727532101,15.44361227,157.77,157.73,6.33979687]
[1748727532797,15.44361227,157.76,157.72,32.34032755]
[1748727533294,9.96,157.75,157.72,32.34032755]
[1748727533473,9.96,157.75,157.72,6.34032755]
[1748727533987,9.96,157.75,157.72,32.34032755]
[1748727538081,9.96,157.75,157.72,26.0]
[1748727538377,9.96,157.75,157.71,32.34063674]
[1748727538593,25.40361227,157.75,157.71,6.34063674]
[1748727540692,25.40361227,157.75,157.7,21.78462537]
[1748727540893,25.40361227,157.75,157.7,6.3410131]
[1748727541414,70.38292814,157.75,157.69,21.78504798]
[1748727542424,15.44361227,157.74,157.69,21.78504798]
[1748727543222,15.44361227,157.74,157.69,6.34143571]
[1748727543525,15.44361227,157.73,157.69,6.34143571]
[1748727543728,15.44361227,157.7,157.64,15.44361227]
[1748727543901,9.96,157.69,157.65,15.44361227]
[1748727544300,25.40361227,157.69,157.64,21.78717989]
[1748727544626,25.40361227,157.69,157.64,6.34356762]
[1748727545729,25.40361227,157.69,157.64,21.78717989]
[1748727546241,25.40361227,157.69,157.63,6.34397005]
[1748727546734,15.44361227,157.68,157.63,6.34397005]
[1748727547305,15.44361227,157.68,157.63,21.78758232]
[1748727547908,21.78571845,157.68,157.63,6.34397005]
[1748727548606,15.44361227,157.67,157.63,6.34397005]
[1748727549926,31.74528973,157.69,157.64,15.44361227]
[1748727550315,24.13114223,157.68,157.63,30.47511228]
[1748727550814,24.13114223,157.68,157.63,6.34397005]
[1748727551017,24.13114223,157.68,157.63,30.47511228]
[1748727551917,24.13114223,157.68,157.63,6.34397005]
[1748727552313,30.4731168,157.68,157.63,6.34397005]
[1748727552706,24.13114223,157.67,157.63,6.34397005]
[1748727558736,62.79114223,157.67,157.63,6.34397005]
[1748727559618,38.66,157.67,157.63,6.34397005]
[1748727559917,62.79114223,157.67,157.63,6.34397005]
[1748727562342,38.66,157.67,157.64,24.13114223]
[1748727562541,9.96,157.69,157.65,24.13114223]
[1748727564122,9.96,157.69,157.64,24.13114223]
[1748727564425,9.96,157.69,157.65,24.13114223]
[1748727564626,9.96,157.69,157.64,24.13114223]
[1748727566247,9.96,157.69,157.65,6.34316523]
[1748727568450,34.09114223,157.69,157.65,6.34316523]
[1748727570241,25.40269617,157.69,157.65,6.34316523]
[1748727570923,9.96,157.69,157.65,21.7858614]
[1748727571152,9.96,157.7,157.67,15.44269617]
[1748727571451,9.96,157.7,157.66,15.44269617]
[1748727571951,25.40269617,157.71,157.66,15.44269617]
[1748727572845,9.96,157.71,157.67,6.34236062]
[1748727573040,25.40269617,157.71,157.67,6.34236062]
[1748727574447,9.96,157.71,157.67,21.78505679]
[1748727574748,9.96,157.71,157.68,15.44269617]
[1748727575538,15.44269617,157.73,157.69,6.34155621]
[1748727575743,9.96,157.72,157.69,6.34155621]
[1748727576736,9.96,157.72,157.69,21.78425238]
[1748727577953,9.96,157.72,157.69,6.34155621]
[1748727578355,9.96,157.72,157.69,21.78425238]
[1748727588333,9.96,157.72,157.7,15.44269617]
[1748727589860,9.96,157.72,157.7,6.34081179]
[1748727590056,9.96,157.72,157.7,21.78350796]
[1748727594146,9.96,157.72,157.7,6.34081179]
[1748727594359,9.96,157.72,157.7,21.78350796]
[1748727597641,15.44269617,157.75,157.71,15.44269617]
[1748727597969,9.96,157.74,157.71,15.44269617]
[1748727599751,9.96,157.74,157.71,21.78310205]
[1748727600158,6.33219143,157.8,157.72,15.44269617]
[1748727600355,97.63697787,157.81,157.75,15.44269617]
[1748727600568,9.96,157.79,157.76,15.44269617]
[1748727600954,9.96,157.84,157.75,44.64964886]
[1748727601175,9.96,157.84,157.8,15.44269617]
[1748727601482,9.96,157.84,157.82,15.44269617]
[1748727601689,9.96,157.84,157.81,15.44269617]
[1748727601862,9.96,157.84,157.82,6.33633253]
[1748727602067,9.96,157.84,157.82,21.7790287]
[1748727602368,9.96,157.84,157.82,6.33633253]
[1748727602561,9.96,157.84,157.82,30.41406221]
[1748727603251,9.96,157.88,157.83,24.07772968]
[1748727603446,9.96,157.88,157.84,24.07772968]
[1748727603773,9.96,157.88,157.85,6.33512828]
[1748727604450,9.96,157.88,157.85,30.41285796]
[1748727606561,6.0024,157.87,157.85,30.41285796]
[1748727611380,6.0024,157.87,157.85,6.33512828]
[1748727611681,6.0024,157.87,157.85,30.41285796]
[1748727611874,40.37091783,157.9,157.85,30.41285796]
[1748727612183,34.03772968,157.9,157.85,30.41285796]
[1748727615181,9.96,157.9,157.85,30.41285796]
[1748727615389,9.96,157.9,157.86,24.07772968]
[1748727615678,9.96,157.9,157.87,24.07772968]
[1748727616286,34.03772968,157.9,157.85,6.33512828]
[1748727616583,24.07772968,157.89,157.84,32.33540444]
[1748727616968,24.07772968,157.88,157.84,26.0]
[1748727617383,24.07772968,157.88,157.83,120.01355384]
[1748727617384,24.07772968,157.87,157.83,89.6]
[1748727617564,24.07772968,157.87,157.82,30.414]
[1748727622789,69.011772,157.88,157.83,24.07772968]
[1748727623977,24.07772968,157.87,157.82,30.414]
[1748727624988,30.68122968,157.87,157.82,30.414]
[1748727628280,22.01162022,157.87,157.82,21.74439054]
[1748727631397,15.40812022,157.87,157.82,21.74439054]
[1748727632801,25.34812022,157.87,157.82,21.74439054]
[1748727637998,9.94,157.87,157.82,21.74439054]
[1748727638188,9.94,157.87,157.83,15.40812022]
[1748727638586,9.94,157.87,157.83,21.74402816]
[1748727641512,9.94,157.87,157.85,15.40812022]
[1748727642085,9.94,157.87,157.84,15.40812022]
[1748727644389,9.94,157.87,157.85,6.33512828]
[1748727644594,9.94,157.87,157.85,21.7432485]
[1748727647311,9.94,157.87,157.86,15.40812022]
[1748727648126,9.94,157.87,157.85,21.7432485]
[1748727648790,6.0042,157.88,157.85,21.7432485]
[1748727651016,1.6577,157.89,157.85,21.7432485]
[1748727651518,15.40812022,157.9,157.85,21.7432485]
[1748727652107,15.40812022,157.89,157.84,40.5354603]
[1748727652710,15.40812022,157.9,157.84,40.5354603]
[1748727654019,15.40812022,157.9,157.85,15.40812022]
[1748727654509,15.40812022,157.9,157.86,6.33472697]
[1748727660622,22.02832022,157.9,157.86,6.33472697]
[1748727665723,6.6202,157.9,157.86,6.33472697]
[1748727666429,70.28087766,157.91,157.86,6.33472697]
[1748727666819,63.94812022,157.91,157.86,6.33472697]
[1748727668937,70.28087416,157.91,157.85,6.33512828]
[1748727669229,15.40812022,157.9,157.85,6.33512828]
[1748727669823,15.40812022,157.9,157.85,21.7432485]
[1748727671211,15.40812022,157.9,157.85,6.33512828]
[1748727671834,6.0848,157.89,157.85,6.33512828]
[1748727672336,15.40812022,157.88,157.83,26.0]
[1748727672715,15.40812022,157.88,157.83,32.3355751]
[1748727673405,15.40812022,157.87,157.83,32.3355751]
[1748727675133,15.40812022,157.87,157.83,6.3355751]
[1748727675434,15.40812022,157.86,157.83,6.3355751]
[1748727676215,25.34812022,157.86,157.83,6.3355751]
[1748727676431,9.94,157.86,157.83,6.3355751]
[1748727677219,25.34812022,157.86,157.83,6.3355751]
[1748727677619,9.94,157.86,157.83,6.3355751]
[1748727681840,9.94,157.86,157.82,47.74439362]
[1748727684545,9.94,157.86,157.82,32.3362734]
[1748727684744,9.94,157.86,157.82,47.74439362]
[1748727684949,25.34812022,157.86,157.82,32.3362734]
[1748727687451,31.47392022,157.86,157.82,32.3362734]
[1748727688664,15.40812022,157.84,157.79,15.40812022]
[1748727688844,15.40812022,157.84,157.8,26.0]
[1748727689348,15.40812022,157.83,157.81,26.0]
[1748727689847,15.40812022,157.83,157.78,18.64964886]
[1748727690049,15.40812022,157.83,157.78,34.05776908]
[1748727690253,15.40812022,157.83,157.78,60.05776908]
[1748727691137,15.40812022,157.83,157.78,66.39534167]
[1748727692628,15.40812022,157.82,157.78,32.33757259]
[1748727693028,9.94,157.81,157.78,26.0]
[1748727695953,25.34812022,157.81,157.78,26.0]
[1748727696161,15.40812022,157.8,157.76,6.33859806]
[1748727696332,15.40812022,157.79,157.76,6.33859806]
[1748727696655,15.40812022,157.79,157.75,6.33914421]
[1748727697354,15.40812022,157.79,157.74,6.33944419]
[1748727697551,15.40812022,157.78,157.74,6.33944419]
[1748727698457,15.40812022,157.78,157.73,6.33994801]
[1748727699250,15.40812022,157.77,157.73,6.33994801]
[1748727699836,25.34812022,157.76,157.73,6.33994801]
[1748727700170,25.34812022,157.76,157.72,32.34025475]
[1748727701544,9.94,157.76,157.75,15.40812022]
[1748727701932,9.94,157.76,157.74,15.40812022]
[1748727702438,9.94,157.76,157.75,15.40812022]
[1748727702659,9.94,157.76,157.75,21.74726443]
[1748727705239,17.96903606,157.8,157.75,21.74726443]
[1748727705447,17.96903606,157.8,157.76,15.40812022]
[1748727706341,17.96903606,157.8,157.77,15.40812022]
[1748727706661,9.94,157.8,157.78,15.40812022]
[1748727706843,9.94,157.8,157.77,15.40812022]
[1748727707050,9.94,157.8,157.78,15.40812022]
[1748727707259,15.40812022,157.83,157.79,6.33753723]
[1748727707260,9.94,157.82,157.79,6.33753723]
[1748727708259,15.40812022,157.83,157.79,6.33753723]
[1748727708455,9.94,157.82,157.79,6.33753723]
[1748727710171,9.94,157.82,157.78,24.08791085]
[1748727710554,34.02791085,157.82,157.77,39.93363536]
[1748727710753,9.94,157.82,157.77,39.93363536]
[1748727711259,9.94,157.82,157.78,24.08791085]
[1748727711656,34.02791085,157.82,157.77,46.27197598]
[1748727712439,34.02791085,157.82,157.77,22.18406513]
[1748727712641,9.94,157.82,157.78,24.08791085]
[1748727713064,9.94,157.82,157.79,6.33753723]
[1748727713463,24.08791085,157.83,157.79,6.33753723]
[1748727713464,34.02791085,157.83,157.79,6.33753723]
[1748727714050,34.02791085,157.83,157.77,15.84572451]
[1748727714249,9.94,157.82,157.78,24.08791085]
[1748727714970,24.08791085,157.83,157.79,6.33753723]
[1748727715265,34.02791085,157.83,157.79,6.33753723]
[1748727715449,24.08791085,157.83,157.79,6.33753723]
[1748727715656,9.94,157.82,157.79,6.33753723]
[1748727718462,9.94,157.82,157.79,24.08791085]
[1748727720773,9.94,157.82,157.8,6.33713561]
[1748727721176,9.94,157.82,157.8,30.42504646]
[1748727721477,16.2411,157.85,157.81,24.08791085]
[1748727721685,9.94,157.85,157.82,24.08791085]
[1748727721872,9.94,157.85,157.83,24.08791085]
[1748727722265,41.86389649,157.88,157.83,24.08791085]
[1748727722569,41.86389649,157.88,157.8,22.17997464]
[1748727722570,17.77598564,157.88,157.84,24.08791085]
[1748727722771,17.77598564,157.88,157.85,6.33512828]
[1748727723782,17.77598564,157.88,157.85,30.42303913]
[1748727724585,17.77598564,157.88,157.86,24.08791085]
[1748727724765,9.94,157.88,157.87,6.33432571]
[1748727728287,9.94,157.88,157.85,6.33512828]
[1748727728487,9.94,157.88,157.85,30.42303913]
[1748727728685,9.94,157.88,157.85,6.33512828]
[1748727740568,9.94,157.88,157.85,15.40486579]
[1748727742168,9.94,157.88,157.85,6.33510286]
[1748727744578,9.94,157.88,157.84,25.12734008]
[1748727745278,15.40486579,157.87,157.82,6.33633253]
[1748727745484,15.40486579,157.87,157.82,21.74119832]
[1748727746082,15.40486579,157.84,157.81,26.0]
[1748727746403,15.40486579,157.84,157.79,15.40486579]
[1748727746696,21.74004548,157.85,157.8,6.33688051]
[1748727746899,15.40486579,157.84,157.8,6.33688051]
[1748727748083,15.40486579,157.83,157.79,32.33738703]
[1748727748709,15.40486579,157.84,157.79,47.74225282]
[1748727748903,15.40486579,157.83,157.79,32.33738703]
[1748727749106,25.32486579,157.83,157.79,32.33738703]
[1748727749608,25.32486579,157.83,157.78,40.39233614]
[1748727750389,15.40486579,157.82,157.77,47.88524519]
[1748727750602,15.40486579,157.81,157.77,32.4803794]
[1748727751876,15.40486579,157.81,157.77,32.33821783]
[1748727752083,15.40486579,157.8,157.76,6.33864881]
[1748727752282,24.09633265,157.8,157.76,32.33864881]
[1748727752789,24.09633265,157.8,157.76,26.0]
[1748727753229,24.09633265,157.79,157.75,6.33901718]
[1748727753412,34.03633265,157.78,157.73,24.09633265]
[1748727753615,9.94,157.78,157.74,24.09633265]
[1748727753985,9.94,157.78,157.73,42.88814308]
[1748727754209,9.94,157.78,157.74,24.09633265]
[1748727755499,9.94,157.78,157.74,30.43566877]
[1748727756403,9.94,157.78,157.75,24.09633265]
[1748727757309,9.94,157.78,157.76,6.33874239]
[1748727757512,9.94,157.79,157.76,30.43507504]
[1748727758613,9.94,157.79,157.75,6.3391068]
[1748727759001,9.94,157.79,157.75,30.43543945]
[1748727760589,24.09633265,157.8,157.75,30.43543945]
[1748727760791,9.94,157.79,157.75,30.43543945]
[1748727765127,24.09633265,157.8,157.75,30.43543945]
[1748727765301,9.94,157.79,157.75,30.43543945]
[1748727768620,9.94,157.79,157.75,6.3391068]
[1748727771528,24.09633265,157.8,157.75,6.3391068]
[1748727771738,9.94,157.79,157.75,6.3391068]
[1748727772020,9.94,157.79,157.75,30.43543945]
[1748727774227,9.94,157.79,157.75,21.7608945]
[1748727775432,9.92,157.79,157.75,6.3391068]
[1748727781432,25.3417877,157.8,157.75,6.3391068]
[1748727783926,15.4217877,157.8,157.75,6.3391068]
[1748727784107,25.3417877,157.8,157.75,6.3391068]
[1748727790924,61.6871508,157.84,157.78,0.28432314]
[1748727790925,25.3417877,157.84,157.78,0.28432314]
[1748727791239,15.4217877,157.83,157.79,18.64964886]
[1748727792337,15.4217877,157.83,157.8,6.33713561]
[1748727800528,16.4584,157.84,157.8,6.33713561]
[1748727800737,15.4217877,157.83,157.8,6.33713561]
[1748727804045,15.4217877,157.83,157.79,6.33738137]
[1748727804345,15.4217877,157.82,157.77,26.0]
[1748727804550,15.4217877,157.82,157.77,41.4217877]
[1748727805049,15.4217877,157.82,157.78,6.33758652]
[1748727807739,22.79399778,157.84,157.78,6.33758652]
[1748727808032,15.4217877,157.82,157.78,6.33758652]
[1748727812459,15.4217877,157.83,157.78,6.33758652]
[1748727812752,16.25559778,157.84,157.78,6.33758652]
[1748727812753,15.4217877,157.82,157.78,6.33758652]
[1748727812952,15.4217877,157.82,157.77,26.0]
[1748727813130,15.4217877,157.81,157.77,26.0]
[1748727813533,15.4217877,157.81,157.76,6.33863059]
[1748727813863,7.94083106,157.83,157.76,6.33863059]
[1748727814033,15.4217877,157.81,157.76,6.33863059]
[1748727816744,21.6489877,157.81,157.76,6.33863059]
[1748727818962,15.4217877,157.8,157.76,6.33863059]
[1748727823660,15.4217877,157.79,157.75,26.0]
[1748727823831,15.4217877,157.78,157.75,26.0]
[1748727824155,15.4217877,157.79,157.75,26.0]
[1748727824357,9.92,157.79,157.75,26.0]
[1748727824752,9.92,157.79,157.75,32.33913395]
[1748727825562,9.92,157.79,157.75,47.76092165]
[1748727826134,9.92,157.79,157.75,32.33913395]
[1748727827863,15.4217877,157.82,157.77,15.4217877]
[1748727828970,15.4217877,157.82,157.78,6.3379389]
[1748727830866,9.92,157.82,157.78,32.3379389]
[1748727831867,25.3417877,157.82,157.78,32.3379389]
[1748727833261,15.4217877,157.83,157.78,32.3379389]
[1748727833465,9.92,157.82,157.78,32.3379389]
[1748727833849,9.92,157.82,157.78,47.7597266]
[1748727834269,9.92,157.82,157.78,32.3379389]
[1748727840362,15.4217877,157.83,157.78,32.3379389]
[1748727840671,9.92,157.82,157.78,32.3379389]
[1748727841050,16.1278,157.84,157.79,18.64964886]
[1748727841377,16.1278,157.84,157.8,0.14216157]
[1748727841672,15.4217877,157.83,157.78,32.3379389]
[1748727842575,37.88522596,157.84,157.78,32.3379389]
[1748727842774,22.46343826,157.84,157.78,47.7597266]
[1748727842969,9.92,157.84,157.78,47.7597266]
[1748727843675,25.3417877,157.85,157.81,26.0]
[1748727843865,9.92,157.85,157.81,26.0]
[1748727844187,9.92,157.85,157.79,26.0]
[1748727844188,15.4217877,157.84,157.79,26.0]
[1748727844563,15.4217877,157.84,157.79,32.33713879]
[1748727845956,31.67704934,157.85,157.79,32.33713879]
[1748727846271,31.67704934,157.85,157.79,47.75892649]
[1748727846478,31.67704934,157.85,157.79,32.33713879]
[1748727848785,31.67704934,157.85,157.79,47.75892649]
[1748727849288,15.4217877,157.84,157.79,32.33713879]
[1748727853069,16.25526164,157.85,157.79,47.75892649]
[1748727853269,25.3417877,157.85,157.79,47.75892649]
[1748727855183,9.92,157.85,157.8,34.21359813]
[1748727856791,9.92,157.85,157.82,6.33633253]
[1748727858687,9.92,157.85,157.81,6.33673404]
[1748727862584,16.9645877,157.86,157.81,6.33673404]
[1748727862788,26.8845877,157.86,157.81,6.33673404]
[1748727864486,15.4217877,157.85,157.81,6.33673404]
[1748727869618,15.4217877,157.85,157.8,18.79181043]
[1748727869619,15.4217877,157.84,157.8,6.33699716]
[1748727869792,15.4217877,157.83,157.79,32.33740833]
[1748727869994,15.4217877,157.83,157.79,6.33740833]
[1748727870911,15.4217877,157.83,157.78,32.48010047]
[1748727872691,15.4217877,157.83,157.78,47.90188817]
[1748727873223,15.4217877,157.83,157.78,32.48010047]
[1748727876618,21.7679877,157.83,157.78,32.48010047]
[1748727877798,21.7679877,157.83,157.78,47.90188817]
[1748727879431,21.7679877,157.83,157.78,21.90188817]
[1748727879631,21.7679877,157.83,157.78,6.48010047]
[1748727879804,6.3462,157.83,157.78,21.90188817]
[1748727881594,6.3462,157.83,157.78,6.48010047]
[1748727881914,6.3462,157.83,157.78,21.90188817]
[1748727882917,21.7679877,157.83,157.78,6.48010047]
[1748727883305,21.7679877,157.83,157.78,21.90188817]
[1748727884323,31.6879877,157.83,157.78,21.90188817]
[1748727887127,31.6879877,157.83,157.78,6.48010047]
[1748727898634,41.4217877,157.79,157.63,61.81816154]
[1748727898813,41.4217877,157.79,157.67,15.4217877]
[1748727898814,15.4217877,157.74,157.67,15.4217877]
[1748727899012,38.68,157.75,157.71,15.4217877]
[1748727900336,38.68,157.75,157.71,6.34070795]
[1748727900640,38.68,157.75,157.71,15.4217877]
[1748727901727,38.68,157.75,157.71,21.76253672]
[1748727902228,38.68,157.75,157.71,15.4217877]
[1748727904640,38.68,157.75,157.71,21.76253065]
[1748727904947,38.68,157.75,157.73,15.4217877]
[1748727905116,6.33845816,157.77,157.73,15.4217877]
[1748727906952,6.33845816,157.77,157.72,15.4217877]
[1748727909358,21.76024586,157.77,157.72,15.4217877]
[1748727909565,21.76024586,157.77,157.7,6.34115409]
[1748727909734,21.76024586,157.77,157.71,15.4217877]
[1748727910957,15.4217877,157.76,157.71,21.76232045]
[1748727911630,21.76024586,157.77,157.71,21.76232045]
[1748727914632,15.4217877,157.77,157.72,15.4217877]
[1748727917144,15.4217877,157.77,157.72,21.7618269]
[1748727919962,15.4217877,157.76,157.71,18.64964886]
[1748727920862,15.4217877,157.76,157.71,34.07143656]
[1748727922255,15.4217877,157.77,157.72,6.34034998]
[1748727927043,16.25803999,157.78,157.72,6.34034998]
[1748727927243,15.4217877,157.77,157.72,6.34034998]
[1748727932068,15.4217877,157.77,157.72,21.76213768]
[1748727937555,15.4217877,157.76,157.72,6.34034998]
[1748727944385,15.4217877,157.77,157.72,6.34034998]
[1748727955788,22.0534877,157.77,157.72,6.34034998]
[1748727962297,6.6317,157.77,157.72,6.34034998]
[1748727969785,6.6317,157.77,157.73,15.4217877]
[1748727969995,6.6317,157.77,157.72,6.34034998]
[1748727970287,6.6317,157.77,157.72,21.76213768]
[1748727970803,6.6317,157.77,157.72,6.34034998]
[1748727971182,6.6317,157.77,157.72,21.76213768]
[1748727973592,6.6317,157.77,157.74,6.33954608]
[1748727974105,6.6317,157.77,157.71,6.34075201]
[1748727974400,22.0534877,157.77,157.71,6.34075201]
[1748727974616,15.4217877,157.74,157.71,6.34075201]
[1748727974791,15.4217877,157.75,157.71,6.34075201]
[1748727974979,12.97008898,157.77,157.71,6.34075201]
[1748727975181,12.97008898,157.77,157.71,21.76253971]
[1748727975385,6.6317,157.77,157.72,15.4217877]
[1748727975586,6.6317,157.77,157.72,21.76189511]
[1748727976003,6.6317,157.77,157.72,6.34010741]
[1748727976210,22.0534877,157.77,157.72,6.34010741]
[1748727976703,3.64633521,157.76,157.72,6.34010741]
[1748727977798,3.64633521,157.76,157.71,6.34075201]
[1748727979104,22.0534877,157.77,157.71,15.4217877]
[1748727981499,22.0534877,157.77,157.72,6.34034998]
[1748727981819,15.4217877,157.77,157.72,6.34034998]
[1748727983111,3.64434856,157.76,157.72,6.34034998]
[1748727984807,3.64434856,157.76,157.72,21.76213768]
[1748727985940,9.92,157.78,157.72,21.76213768]
[1748727986701,25.3417877,157.78,157.72,26.0]
[1748727986895,15.4217877,157.77,157.72,26.0]
[1748727987404,25.3417877,157.78,157.72,41.4217877]
[1748727987911,25.3417877,157.78,157.73,6.33994801]
[1748727988809,9.92,157.78,157.73,6.33994801]
[1748727988992,25.3417877,157.78,157.73,6.33994801]
[1748727991524,15.4217877,157.77,157.73,6.33994801]
[1748727992298,31.67983694,157.78,157.72,32.34027355]
[1748727993445,15.4217877,157.77,157.72,32.34027355]
[1748727993806,21.7602971,157.77,157.72,32.34033364]